bitfinex/quotes_ETHUSD_20240603
["timestamp","ask_amount","ask_price","bid_price","bid_amount"]
[1717372801340,2.4288,3782.6,3782.2,0.0547455]
[1717372804691,2.449,3783.0,3782.2,0.0547455]
[1717372804935,2.449,3783.0,3782.2,0.5317455]
[1717372805145,2.449,3783.0,3782.2,0.0547455]
[1717372805146,3.880738,3782.9,3782.2,0.0547455]
[1717372805446,2.926,3782.8,3782.2,0.0547455]
[1717372805624,2.449,3782.8,3782.2,0.0547455]
[1717372809429,4.357738,3782.9,3782.2,0.0547455]
[1717372809430,0.477,3782.7,3782.2,0.0547455]
[1717372809616,0.477,3782.5,3782.2,0.0547455]
[1717372809821,0.477,3782.3,3782.2,0.0547455]
[1717372810235,2.7775,3782.3,3782.2,0.0547455]
[1717372813762,2.3005,3782.3,3782.2,0.0547455]
[1717372813915,2.7775,3782.3,3782.2,0.0547455]
[1717372814715,2.3005,3782.3,3782.2,0.0547455]
[1717372814950,3.550701,3782.3,3782.2,0.0547455]
[1717372815391,3.550701,3782.3,3781.9,0.067774]
[1717372815586,2.64397,3782.2,3781.9,0.067774]
[1717372815722,2.2705,3782.0,3781.9,0.067774]
[1717372820164,2.64397,3782.2,3781.9,0.067774]
[1717372820364,3.8188221,3782.2,3781.9,0.067774]
[1717372820572,3.3418221,3782.2,3781.9,0.067774]
[1717372821458,3.3418221,3782.2,3781.3,1.544474]
[1717372821662,3.3418221,3782.2,3782.0,0.05342517]
[1717372821915,3.3418221,3782.2,3781.3,1.544474]
[1717372822270,3.3418221,3782.2,3781.4,0.05365294]
[1717372822679,1.24463731,3782.1,3781.4,0.05365294]
[1717372822879,1.24463731,3782.1,3781.2,0.00585817]
[1717372823285,0.477,3781.9,3781.2,0.00585817]
[1717372823576,0.477,3781.7,3781.2,0.00585817]
[1717372823782,0.477,3781.5,3781.2,0.00585817]
[1717372826307,0.264426,3781.7,3781.2,0.00585817]
[1717372826466,5.61586,3781.8,3781.2,0.00585817]
[1717372827076,5.13886,3781.8,3781.2,0.00585817]
[1717372829327,5.13886,3781.8,3781.3,0.052288]
[1717372829711,5.13886,3781.8,3781.2,0.00585817]
[1717372830052,5.13886,3781.8,3781.4,0.052288]
[1717372830253,1.038586,3781.7,3781.2,0.00585817]
[1717372830948,1.038586,3781.7,3781.3,0.052288]
[1717372831461,1.038586,3781.7,3781.2,0.00585817]
[1717372831953,1.038586,3781.7,3781.3,0.052288]
[1717372832119,0.6177446,3781.6,3781.3,0.052288]
[1717372832321,0.6177446,3781.6,3781.2,0.00585817]
[1717372832663,0.6177446,3781.6,3781.3,0.052288]
[1717372833057,0.6177446,3781.6,3781.2,0.00585817]
[1717372833429,0.6177446,3781.6,3781.3,0.052288]
[1717372833636,0.6177446,3781.6,3781.2,0.00585817]
[1717372833817,0.6177446,3781.6,3781.3,0.052288]
[1717372834016,0.6177446,3781.6,3781.2,0.00585817]
[1717372834254,0.6177446,3781.6,3781.3,0.052288]
[1717372834866,0.6177446,3781.6,3781.2,0.00585817]
[1717372835155,0.477,3781.7,3781.2,0.00585817]
[1717372835332,0.477,3781.7,3781.3,0.052288]
[1717372835660,0.477,3781.7,3781.2,0.00585817]
[1717372836168,0.477,3781.7,3781.3,0.052288]
[1717372836521,0.477,3781.7,3781.2,0.00585817]
[1717372836942,0.477,3781.7,3781.3,0.052288]
[1717372837134,1.038586,3781.7,3781.3,0.052288]
[1717372837333,1.038586,3781.7,3781.2,0.00585817]
[1717372837548,1.038586,3781.7,3781.4,0.052288]
[1717372837748,1.038586,3781.7,3781.2,0.00585817]
[1717372838135,1.038586,3781.7,3781.3,0.052288]
[1717372838339,1.038586,3781.7,3781.2,0.00585817]
[1717372838563,1.038586,3781.7,3781.4,0.052288]
[1717372838719,1.038586,3781.7,3781.2,0.00585817]
[1717372838921,0.561586,3781.7,3781.2,0.00585817]
[1717372839137,0.561586,3781.7,3781.3,0.052288]
[1717372839422,0.561586,3781.7,3781.2,0.00585817]
[1717372839622,0.561586,3781.7,3781.3,0.052288]
[1717372839857,0.561586,3781.7,3781.2,0.00585817]
[1717372840059,0.561586,3781.7,3781.4,0.052288]
[1717372840268,0.561586,3781.7,3781.2,0.00585817]
[1717372840624,0.561586,3781.7,3781.3,0.05227923]
[1717372840825,0.561586,3781.7,3781.2,0.00585817]
[1717372841136,0.561586,3781.7,3781.3,0.05227923]
[1717372841324,0.561586,3781.7,3781.2,0.00585817]
[1717372841525,0.561586,3781.7,3781.4,0.05227923]
[1717372841757,0.561586,3781.7,3781.2,0.00585817]
[1717372842060,0.561586,3781.7,3781.3,0.05227923]
[1717372842474,0.561586,3781.7,3781.2,0.00585817]
[1717372842642,0.561586,3781.7,3781.4,0.05227923]
[1717372842976,0.561586,3781.7,3781.2,0.00585817]
[1717372843324,0.561586,3781.7,3781.3,0.05227923]
[1717372843667,0.561586,3781.7,3781.2,0.00585817]
[1717372843872,5.13886,3781.8,3781.4,0.05227923]
[1717372844188,5.13886,3781.8,3781.2,0.00585817]
[1717372844659,5.13886,3781.8,3781.3,0.05227923]
[1717372845074,5.13886,3781.8,3781.2,0.00585817]
[1717372845224,5.13886,3781.8,3781.4,0.05227923]
[1717372845423,5.13886,3781.8,3781.2,0.00585817]
[1717372845424,6.50520973,3781.8,3781.2,0.00585817]
[1717372847358,5.13886,3781.8,3781.2,0.00585817]
[1717372847688,5.13886,3781.8,3781.3,0.05227923]
[1717372848143,5.13886,3781.8,3781.2,0.00585817]
[1717372848574,5.13886,3781.8,3781.3,0.05227923]
[1717372848956,5.13886,3781.8,3781.2,0.00585817]
[1717372849148,5.13886,3781.8,3781.4,0.05227923]
[1717372849348,6.50520973,3781.8,3781.2,0.00585817]
[1717372850456,2.64426,3781.8,3781.2,0.00585817]
[1717372850659,2.64426,3781.8,3781.3,0.05227923]
[1717372850878,2.64426,3781.8,3781.2,0.48285817]
[1717372851095,2.64426,3781.8,3781.4,0.05232303]
[1717372851394,2.64426,3781.8,3781.2,0.48285817]
[1717372851750,2.64426,3781.8,3781.3,0.05232303]
[1717372852047,2.64426,3781.8,3781.2,0.48285817]
[1717372852247,2.64426,3781.8,3781.3,0.05232303]
[1717372852479,2.64426,3781.8,3781.2,0.00585817]
[1717372852783,2.64426,3781.8,3781.4,0.05232303]
[1717372852988,2.64426,3781.8,3781.2,0.00585817]
[1717372853515,2.64426,3781.8,3781.3,0.05232303]
[1717372853853,2.64426,3781.8,3781.2,0.00585817]
[1717372854056,2.64426,3781.8,3781.3,0.05232303]
[1717372854258,2.64426,3781.8,3781.2,0.00585817]
[1717372854453,2.64426,3781.8,3781.3,0.05232303]
[1717372854676,2.64426,3781.8,3781.2,0.00585817]
[1717372854901,2.64426,3781.8,3781.4,0.05232303]
[1717372855198,3.924206,3781.8,3781.2,0.00585817]
[1717372855898,2.64426,3781.8,3781.2,0.00585817]
[1717372856259,2.64426,3781.8,3781.3,0.05232303]
[1717372856483,2.64426,3781.8,3781.2,0.00585817]
[1717372856688,2.64426,3781.8,3781.4,0.05232303]
[1717372856908,2.64426,3781.8,3781.2,0.00585817]
[1717372857404,2.64426,3781.8,3781.3,0.05232303]
[1717372857764,2.64426,3781.8,3781.2,0.00585817]
[1717372857965,2.64426,3781.8,3781.4,0.05232303]
[1717372858308,2.64426,3781.8,3781.2,0.00585817]
[1717372858715,2.64426,3781.8,3781.3,0.05232303]
[1717372858914,3.924206,3781.8,3781.3,0.05232303]
[1717372859212,3.924206,3781.8,3781.2,0.00585817]
[1717372859415,2.4728,3781.7,3781.4,0.05232303]
[1717372859710,2.4728,3781.7,3781.2,0.00585817]
[1717372860187,2.4728,3781.7,3781.3,0.05232303]
[1717372860512,2.4728,3781.7,3781.2,0.00585817]
[1717372860513,0.6874006,3781.6,3781.2,0.00585817]
[1717372860665,0.6874006,3781.6,3781.4,0.05232303]
[1717372860869,0.6874006,3781.6,3781.2,0.00585817]
[1717372860870,1.1644006,3781.6,3781.2,0.00585817]
[1717372861172,1.1644006,3781.6,3781.3,0.05232303]
[1717372861372,0.75614066,3781.5,3781.3,0.05232303]
[1717372861693,0.75614066,3781.5,3781.2,0.00585817]
[1717372861694,0.75614066,3781.5,3781.4,0.05234053]
[1717372862006,0.75614066,3781.5,3781.2,0.00585817]
[1717372862583,0.75614066,3781.5,3781.3,0.05234053]
[1717372862895,0.75614066,3781.5,3781.2,0.00585817]
[1717372863096,0.75614066,3781.5,3781.4,0.05234053]
[1717372863273,0.75614066,3781.5,3781.2,0.00585817]
[1717372863478,0.75614066,3781.5,3781.3,0.05234053]
[1717372863718,0.75614066,3781.5,3781.2,0.00585817]
[1717372863929,0.75614066,3781.5,3781.4,0.05234053]
[1717372864231,0.75614066,3781.5,3781.2,0.00585817]
[1717372864573,0.75614066,3781.5,3781.3,0.05234053]
[1717372864811,0.75614066,3781.5,3781.2,0.00585817]
[1717372865015,0.75614066,3781.5,3781.4,0.05234053]
[1717372865317,0.75614066,3781.5,3781.2,0.00585817]
[1717372865719,0.75614066,3781.5,3781.3,0.05234053]
[1717372866018,0.75614066,3781.5,3781.2,0.00585817]
[1717372866213,0.75614066,3781.5,3781.4,0.05234053]
[1717372866506,0.75614066,3781.5,3781.2,0.00585817]
[1717372866711,0.75614066,3781.5,3781.4,0.05234053]
[1717372866866,0.75614066,3781.5,3781.2,0.00585817]
[1717372867067,2.9498,3781.7,3781.3,0.05234053]
[1717372867313,2.9498,3781.7,3781.2,0.00585817]
[1717372867513,2.9498,3781.7,3781.4,0.05234053]
[1717372867704,2.64438,3781.6,3781.2,0.00585817]
[1717372867909,0.6874126,3781.5,3781.2,0.00585817]
[1717372869028,2.64452,3781.4,3781.2,0.00585817]
[1717372869226,2.4408,3781.3,3781.2,0.00585817]
[1717372870523,2.64452,3781.4,3781.2,0.00585817]
[1717372871056,2.2518,3781.3,3781.2,0.00585817]
[1717372871526,2.7288,3781.3,3781.2,0.00585817]
[1717372871761,3.266132,3781.3,3781.2,0.00585817]
[1717372872030,3.330232,3781.3,3781.2,0.00585817]
[1717372872414,2.853232,3781.3,3781.2,0.00585817]
[1717372873392,3.330232,3781.3,3781.2,0.00585817]
[1717372873596,2.853232,3781.3,3781.2,0.00585817]
[1717372876225,2.64452,3781.4,3781.2,0.48285817]
[1717372876418,1.279946,3781.8,3781.2,0.48285817]
[1717372876419,2.64426,3781.8,3781.2,0.48285817]
[1717372876638,2.64426,3781.8,3781.4,0.477]
[1717372877149,2.64426,3781.8,3781.2,0.00585817]
[1717372877430,7.28,3782.1,3781.5,0.52957697]
[1717372877629,7.28,3782.1,3781.3,0.477]
[1717372878084,7.28,3782.1,3781.2,0.00585817]
[1717372878635,7.757,3782.1,3781.2,0.00585817]
[1717372879216,2.2603,3782.0,3781.2,0.00585817]
[1717372879423,1.47873,3781.9,3781.2,0.00585817]
[1717372880494,3.64595,3781.9,3781.2,0.00585817]
[1717372881393,2.64422,3781.9,3781.2,0.48285817]
[1717372881615,2.64422,3781.9,3781.4,0.477]
[1717372881994,2.64422,3781.9,3781.3,2.3725]
[1717372883120,2.64422,3781.9,3781.2,0.00585817]
[1717372883948,2.64422,3781.9,3781.3,0.0521698]
[1717372886199,2.2603,3782.0,3781.3,0.0521698]
[1717372886595,2.2603,3782.0,3781.2,0.00585817]
[1717372887519,7.28,3782.1,3781.5,0.477]
[1717372887854,7.28,3782.1,3781.7,0.477]
[1717372888001,7.28,3782.1,3781.6,2.4618]
[1717372888200,7.28,3782.1,3781.8,0.0521698]
[1717372888417,7.28,3782.1,3781.6,2.4618]
[1717372888628,7.28,3782.1,3781.9,0.0521698]
[1717372888956,7.28,3782.1,3782.0,0.0521698]
[1717372889240,7.28,3782.1,3781.6,2.4618]
[1717372889699,7.28,3782.1,3781.7,0.0521698]
[1717372889898,7.28,3782.1,3781.6,2.4618]
[1717372890141,7.28,3782.1,3781.7,0.0521698]
[1717372890314,7.28,3782.1,3781.6,2.4618]
[1717372890503,7.28,3782.1,3781.8,0.0521698]
[1717372890699,2.64389,3782.4,3781.6,2.4618]
[1717372894743,2.3724,3782.5,3781.6,5.10614]
[1717372894927,2.3724,3782.5,3781.7,0.05191154]
[1717372895132,5.01619,3782.5,3781.7,0.05191154]
[1717372895463,6.245809,3782.5,3781.7,0.05191154]
[1717372895964,6.245809,3782.5,3781.2,5.71015699]
[1717372896175,2.64393,3782.3,3781.8,0.05191154]
[1717372896321,2.64393,3782.3,3781.2,5.14780817]
[1717372896525,2.64393,3782.3,3781.9,0.05191154]
[1717372896755,2.64393,3782.3,3781.2,5.14780817]
[1717372896936,2.64393,3782.3,3782.0,0.05194218]
[1717372897144,0.6191349,3782.2,3781.2,5.14780817]
[1717372897378,0.6191349,3782.2,3782.1,0.05194218]
[1717372897534,0.6191349,3782.2,3781.2,5.14780817]
[1717372897734,0.6191349,3782.2,3782.1,0.05194218]
[1717372897978,2.64417,3781.9,3781.2,0.00585817]
[1717372898258,1.229619,3782.5,3781.2,0.00585817]
[1717372898259,2.4714,3781.7,3781.2,0.00585817]
[1717372899058,5.11576,3781.7,3781.2,0.00585817]
[1717372904150,2.64446,3781.5,3781.2,0.00585817]
[1717372908387,2.64459,3781.3,3781.2,0.00585817]
[1717372908591,5.539589,3781.3,3781.2,0.00585817]
[1717372912003,6.018589,3781.3,3781.2,0.00585817]
[1717372915902,3.627189,3781.3,3781.2,0.00585817]
[1717372916467,3.627189,3781.3,3781.2,0.05805866]
[1717372916672,3.627189,3781.3,3781.2,0.00585817]
[1717372918230,5.884489,3781.3,3781.2,0.00585817]
[1717372921303,8.884489,3781.3,3781.2,0.00585817]
[1717372921614,8.405489,3781.3,3781.2,0.00585817]
[1717372921933,8.884489,3781.3,3781.2,0.00585817]
[1717372929929,2.49414183,3780.3,3780.2,2.2838]
[1717372930212,2.49414183,3780.3,3780.2,2.33692878]
[1717372931974,2.49414183,3780.3,3780.2,0.05312878]
[1717372932175,2.49414183,3780.3,3779.8,0.41405643]
[1717372932376,2.49414183,3780.3,3779.9,0.05312878]
[1717372932870,2.49414183,3780.3,3780.0,2.3901]
[1717372933514,2.49414183,3780.3,3780.1,0.05312878]
[1717372939192,2.49414183,3780.3,3779.6,2.3139]
[1717372939419,2.49414183,3780.3,3779.7,0.05126804]
[1717372939634,2.49414183,3780.3,3779.5,5.43868]
[1717372939827,2.49414183,3780.3,3779.6,0.05130741]
[1717372950331,2.49414183,3780.3,3779.6,0.60030615]
[1717372953037,2.49414183,3780.3,3779.7,0.479]
[1717372953239,2.49414183,3780.3,3779.8,0.05144304]
[1717372953450,2.49414183,3780.3,3779.7,0.479]
[1717372953657,2.49414183,3780.3,3779.8,0.05144304]
[1717372953966,2.49414183,3780.3,3779.7,0.479]
[1717372954135,2.49414183,3780.3,3779.9,0.05117538]
[1717372954335,2.49414183,3780.3,3779.7,0.479]
[1717372954534,2.49414183,3780.3,3780.0,0.05117538]
[1717372954736,2.49414183,3780.3,3779.7,0.479]
[1717372954935,2.49414183,3780.3,3780.1,0.05117538]
[1717372955138,2.49414183,3780.3,3779.7,0.479]
[1717372955350,2.49414183,3780.3,3780.2,0.05117538]
[1717372955968,2.49414183,3780.3,3779.7,0.479]
[1717372956122,2.49414183,3780.3,3780.2,0.05117538]
[1717372956322,2.49414183,3780.3,3779.7,0.479]
[1717372956554,2.49414183,3780.3,3780.2,0.05117538]
[1717372956758,2.49414183,3780.3,3779.7,0.479]
[1717372957225,2.49414183,3780.3,3779.8,0.05117538]
[1717372957424,2.49414183,3780.3,3779.5,5.43868]
[1717372957649,2.49414183,3780.3,3779.6,0.05117538]
[1717372981012,2.49414183,3780.3,3779.6,0.53017538]
[1717372981406,2.49414183,3780.3,3779.6,0.05117538]
[1717372988329,2.3371,3780.2,3779.6,0.05117538]
[1717372998613,2.3371,3780.2,3779.6,1.63989758]
[1717372998847,2.3371,3780.2,3779.7,0.28596012]
[1717372999050,2.3371,3780.2,3779.8,0.05130664]
[1717372999257,2.3371,3780.2,3779.7,0.28596012]
[1717372999557,2.3371,3780.2,3779.8,0.05130664]
[1717373000055,2.3371,3780.2,3779.9,0.05130664]
[1717373000206,2.3371,3780.2,3779.7,0.28596012]
[1717373000404,2.3371,3780.2,3779.8,0.05130664]
[1717373000718,2.3371,3780.2,3779.7,0.28596012]
[1717373000901,2.3371,3780.2,3779.9,0.05130664]
[1717373001101,2.3371,3780.2,3779.7,0.28596012]
[1717373001333,2.3371,3780.2,3780.0,0.05130664]
[1717373001653,2.3371,3780.2,3780.1,0.05130664]
[1717373001855,2.57081,3780.2,3779.7,0.28596012]
[1717373002019,2.57081,3780.2,3779.0,0.55381112]
[1717373002020,2.64557,3779.9,3779.8,0.0496957]
[1717373002205,2.64557,3779.9,3779.5,0.28596012]
[1717373002554,2.3397,3779.8,3779.6,0.0496957]
[1717373002865,2.886127,3779.8,3779.2,1.5887222]
[1717373003005,2.886127,3779.8,3779.3,0.0496957]
[1717373003204,2.886127,3779.8,3779.2,1.87468232]
[1717373003407,2.886127,3779.8,3779.3,0.0496957]
[1717373003721,2.886127,3779.8,3779.1,1.87468232]
[1717373004055,2.886127,3779.8,3779.4,0.0496957]
[1717373004350,0.40602001,3779.7,3779.1,1.87468232]
[1717373004532,2.3397,3779.8,3779.5,0.0496957]
[1717373004744,2.3397,3779.8,3779.2,2.0677222]
[1717373005047,2.3397,3779.8,3779.4,0.479]
[1717373005231,2.3397,3779.8,3779.5,0.0496957]
[1717373005814,2.4255,3780.1,3779.7,0.479]
[1717373006104,2.4255,3780.1,3780.0,0.479]
[1717373006303,2.4255,3780.1,3779.8,0.0496957]
[1717373006547,2.4255,3780.1,3779.8,0.479]
[1717373006754,2.4255,3780.1,3779.9,0.0496957]
[1717373007043,2.4255,3780.1,3779.7,0.479]
[1717373007248,2.4255,3780.1,3779.8,0.0496957]
[1717373007403,2.4255,3780.1,3779.7,0.479]
[1717373007852,2.4255,3780.1,3779.8,0.0496957]
[1717373008037,2.4255,3780.1,3779.7,0.479]
[1717373008447,2.4255,3780.1,3779.8,0.0496957]
[1717373008651,2.4255,3780.1,3779.5,2.35361423]
[1717373008947,2.4255,3780.1,3779.6,0.0496957]
[1717373010241,2.66805,3780.1,3779.6,0.0496957]
[1717373010559,2.4,3779.9,3779.6,0.0496957]
[1717373010918,2.4,3779.9,3779.2,1.58865613]
[1717373011117,2.4,3779.9,3779.7,0.0496957]
[1717373011319,2.4,3779.9,3779.0,2.35361423]
[1717373011747,2.4,3779.9,3779.1,0.0496957]
[1717373012020,2.976706,3779.9,3779.1,0.0496957]
[1717373012860,2.976706,3779.9,3779.1,1.63835183]
[1717373013241,2.976706,3779.9,3779.1,0.0496957]
[1717373014116,2.3757,3779.7,3779.1,0.0496957]
[1717373014656,2.3757,3779.7,3778.9,4.23488613]
[1717373014859,2.3757,3779.7,3779.0,1.63860215]
[1717373015216,2.3757,3779.7,3779.0,0.04994602]
[1717373015497,2.3757,3779.7,3779.0,1.63860215]
[1717373015956,2.2843,3779.4,3779.0,0.04994602]
[1717373016858,2.2843,3779.4,3778.6,2.06765613]
[1717373017062,2.2843,3779.4,3778.7,0.04996789]
[1717373018221,2.2843,3779.4,3778.7,0.52896789]
[1717373019345,2.2843,3779.4,3778.7,0.04996789]
[1717373019548,3.186897,3779.4,3778.7,0.04996789]
[1717373019746,2.4633,3779.2,3778.7,0.04996789]
[1717373019932,2.4633,3779.2,3778.3,2.06765613]
[1717373020132,2.4633,3779.2,3778.8,0.05005097]
[1717373020361,2.4633,3779.2,3778.3,0.479]
[1717373020516,2.3789,3779.0,3778.1,2.6468]
[1717373020858,2.3789,3779.0,3778.4,0.04844924]
[1717373021265,2.3789,3779.0,3778.5,0.04852358]
[1717373021624,2.3789,3779.0,3778.3,0.479]
[1717373021824,2.3789,3779.0,3778.6,0.04852358]
[1717373022018,2.929303,3779.0,3778.3,0.479]
[1717373022255,2.3789,3779.0,3778.7,0.04852358]
[1717373022562,2.3789,3779.0,3778.8,0.04852358]
[1717373022924,2.3789,3779.0,3778.3,0.479]
[1717373023126,2.3789,3779.0,3778.1,2.6468]
[1717373023335,2.4731,3778.8,3778.4,0.04852358]
[1717373023660,2.4731,3778.8,3778.1,3.1258]
[1717373024016,2.4731,3778.8,3778.2,0.04861106]
[1717373024216,2.4731,3778.8,3778.5,0.479]
[1717373024447,2.3572,3779.0,3778.5,0.479]
[1717373024720,2.3572,3779.0,3778.6,0.04861543]
[1717373029057,2.3572,3779.0,3778.4,0.479]
[1717373029570,2.3572,3779.0,3778.5,0.04861543]
[1717373038091,2.3572,3779.0,3778.4,0.479]
[1717373038451,2.3572,3779.0,3778.5,0.04878703]
[1717373038675,2.90542,3779.0,3778.5,0.04878703]
[1717373038886,2.90542,3779.0,3778.3,0.479]
[1717373039064,2.3572,3779.0,3778.6,0.04878703]
[1717373039249,2.3572,3779.0,3778.3,0.479]
[1717373039751,2.3572,3779.0,3778.4,0.04878703]
[1717373040178,0.479,3778.8,3778.4,0.04878703]
[1717373040366,2.4101,3778.7,3778.4,0.04878703]
[1717373040573,2.4101,3778.7,3778.1,2.6468]
[1717373040765,2.4101,3778.7,3778.5,0.04883078]
[1717373040967,2.4101,3778.7,3778.1,2.6468]
[1717373041287,2.4101,3778.7,3778.6,0.04883078]
[1717373041804,2.4101,3778.7,3778.1,3.1258]
[1717373041948,2.4101,3778.7,3778.6,0.04883078]
[1717373042151,2.4101,3778.7,3778.0,2.3385]
[1717373042355,2.4101,3778.7,3778.6,0.04889202]
[1717373042686,2.4101,3778.7,3778.0,2.8175]
[1717373042891,2.4101,3778.7,3778.6,0.04889202]
[1717373043090,2.963635,3778.7,3778.0,2.3385]
[1717373043291,2.4101,3778.7,3778.6,0.04889202]
[1717373043464,2.4101,3778.7,3777.9,1.58918918]
[1717373043992,2.4101,3778.7,3778.0,0.04889202]
[1717373044367,2.4101,3778.7,3778.3,0.479]
[1717373044778,2.4101,3778.7,3778.4,0.04889202]
[1717373044974,2.64625,3779.0,3778.4,0.04889202]
[1717373045178,2.64625,3779.0,3778.6,0.479]
[1717373046080,2.64625,3779.0,3778.7,0.04894451]
[1717373048207,2.64625,3779.0,3778.5,0.479]
[1717373048498,2.64625,3779.0,3778.8,0.04894451]
[1717373048708,2.64625,3779.0,3778.5,0.479]
[1717373049154,2.4856,3779.1,3778.7,0.479]
[1717373049858,2.4856,3779.1,3778.8,0.04895765]
[1717373050257,2.4856,3779.1,3778.7,0.479]
[1717373050459,2.4856,3779.1,3778.9,0.04895765]
[1717373050688,2.4856,3779.1,3778.7,0.479]
[1717373050987,2.4856,3779.1,3778.8,0.04895765]
[1717373051187,5.93658674,3779.1,3778.4,1.58917447]
[1717373051387,0.32579674,3779.1,3778.9,0.04895765]
[1717373051556,2.4508,3779.4,3779.0,0.479]
[1717373051751,2.4508,3779.4,3778.4,1.87522587]
[1717373051996,2.4508,3779.4,3778.7,0.479]
[1717373052384,2.4508,3779.4,3778.5,1.58917447]
[1717373052568,2.4508,3779.4,3778.8,0.52795765]
[1717373052777,9.58,3779.7,3779.3,0.479]
[1717373053033,2.3,3779.3,3778.6,0.2860514]
[1717373053197,2.64608,3779.2,3778.4,1.58917447]
[1717373053395,2.3286,3779.1,3778.1,1.58917447]
[1717373053606,2.3286,3779.1,3778.5,0.479]
[1717373053924,0.497468,3779.0,3778.3,0.479]
[1717373054276,2.3286,3778.9,3777.9,1.58917447]
[1717373054466,2.3286,3778.9,3778.4,0.04388202]
[1717373054663,0.3305068,3778.8,3778.2,0.479]
[1717373054896,2.3286,3778.9,3778.4,0.479]
[1717373055959,2.3286,3778.9,3777.8,1.58917447]
[1717373056163,2.3286,3778.9,3777.7,2.7051514]
[1717373056164,2.3122,3778.7,3777.9,0.04388202]
[1717373056410,2.3122,3778.7,3777.9,0.479]
[1717373056625,2.3122,3778.7,3778.1,0.479]
[1717373056811,2.3122,3778.7,3778.0,0.04388202]
[1717373057101,2.3122,3778.7,3778.0,0.479]
[1717373057410,2.3122,3778.7,3778.2,0.479]
[1717373057964,2.3122,3778.7,3778.4,0.479]
[1717373058378,2.3122,3778.7,3778.5,0.04388202]
[1717373059374,2.3122,3778.7,3778.6,0.04388202]
[1717373059690,2.3122,3778.7,3778.4,0.479]
[1717373059691,2.3122,3778.7,3777.9,2.394]
[1717373059887,2.3122,3778.7,3778.6,0.52288202]
[1717373060097,2.3122,3778.7,3778.4,0.479]
[1717373060291,2.3122,3778.7,3778.6,0.04388202]
[1717373060509,2.3122,3778.7,3778.4,0.479]
[1717373060737,2.3122,3778.7,3778.6,0.04388202]
[1717373060919,2.3122,3778.7,3778.4,0.479]
[1717373061462,2.3122,3778.7,3778.5,0.04388202]
[1717373061819,2.3069,3779.0,3778.6,0.479]
[1717373062014,2.64608,3779.2,3778.9,0.479]
[1717373062218,4.95298,3779.2,3779.1,0.479]
[1717373062597,2.3069,3779.2,3779.1,0.479]
[1717373062856,2.3069,3779.4,3778.2,4.23587619]
[1717373063053,2.3069,3779.4,3779.1,0.04388202]
[1717373063054,3.530164,3779.4,3779.1,0.04388202]
[1717373063219,2.3069,3779.4,3778.9,0.479]
[1717373063420,12.2,3779.9,3779.3,0.479]
[1717373063421,2.3069,3779.8,3779.3,0.479]
[1717373063622,7.28,3780.1,3779.4,2.64591]
[1717373063917,7.28,3780.1,3780.0,0.479]
[1717373064500,7.28,3780.1,3779.4,4.23447574]
[1717373064728,7.28,3780.1,3780.0,0.479]
[1717373065231,7.28,3780.1,3780.0,0.52274642]
[1717373065418,7.28,3780.1,3780.0,0.479]
[1717373066101,7.28,3780.1,3779.4,3.06935757]
[1717373066305,7.28,3780.1,3780.0,0.479]
[1717373067432,7.28,3780.1,3779.4,2.64591]
[1717373067753,7.28,3780.1,3779.7,0.479]
[1717373067939,2.3296,3780.0,3779.5,0.04339223]
[1717373068166,2.3296,3780.0,3779.5,0.479]
[1717373068481,2.3296,3780.0,3779.3,0.479]
[1717373069450,2.3296,3780.0,3779.5,0.479]
[1717373069649,1.02174862,3779.9,3779.5,0.479]
[1717373071434,2.4848,3779.6,3778.5,1.58886491]
[1717373071641,0.479,3779.3,3778.2,2.06786491]
[1717373071955,0.312488,3779.2,3778.6,0.479]
[1717373072152,2.64613,3779.1,3777.9,2.64693]
[1717373072366,2.64613,3779.1,3778.4,0.479]
[1717373072564,2.2983,3779.0,3778.4,0.479]
[1717373072884,2.2983,3779.0,3778.5,0.03927689]
[1717373073080,2.8239918,3779.0,3778.5,0.03927689]
[1717373074206,2.8239918,3779.0,3778.6,0.03842136]
[1717373074684,2.8239918,3779.0,3777.9,2.64693]
[1717373074844,2.2983,3779.0,3778.7,0.03842136]
[1717373075040,2.2983,3779.0,3778.0,1.151]
[1717373075477,2.2983,3779.0,3778.1,0.03842136]
[1717373076395,2.2983,3779.0,3777.9,2.64693]
[1717373076592,2.2983,3779.0,3778.2,0.03849997]
[1717373076792,3.5519918,3779.0,3777.9,2.64693]
[1717373077093,3.5519918,3779.0,3778.0,0.03849997]
[1717373077094,2.64629,3778.9,3778.0,0.03849997]
[1717373077398,3.0,3779.4,3778.1,0.03849997]
[1717373077603,7.28,3779.7,3778.5,1.151]
[1717373077769,7.28,3779.7,3778.6,0.55]
[1717373078101,2.78,3781.1,3778.6,0.55]
[1717373078102,2.64508,3780.6,3779.5,1.151]
[1717373078250,5.02138,3780.6,3779.5,1.151]
[1717373078453,5.02138,3780.6,3779.2,2.3273]
[1717373078454,5.02138,3780.6,3779.6,0.03834276]
[1717373078653,5.02138,3780.6,3779.3,0.55]
[1717373078894,1.230138,3780.5,3779.7,0.03832966]
[1717373079098,1.230138,3780.5,3779.3,0.55]
[1717373079410,1.230138,3780.5,3779.8,0.03832966]
[1717373079603,1.230138,3780.5,3779.3,0.55]
[1717373079898,1.230138,3780.5,3779.9,0.03796294]
[1717373080105,2.6453,3780.3,3779.2,2.3273]
[1717373080257,2.6453,3780.3,3779.1,2.64607]
[1717373080455,2.64561,3779.9,3778.5,4.23538491]
[1717373080709,2.2822,3779.8,3779.2,0.03673161]
[1717373081009,0.31216135,3779.7,3778.5,2.64652]
[1717373081163,2.2822,3779.8,3778.7,1.151]
[1717373081366,9.92561,3779.9,3778.8,5.05042]
[1717373081670,9.92561,3779.9,3778.9,0.03630915]
[1717373082113,9.92561,3779.9,3778.9,0.58630915]
[1717373082873,7.28,3779.9,3779.1,1.151]
[1717373083259,7.28,3779.9,3779.2,0.43834792]
[1717373083459,7.28,3779.9,3779.3,0.55]
[1717373083607,19.48,3780.3,3779.3,0.58630915]